{"text_format":"1","workbook":"xlsx","n_sheets":4,"sheets":["Uitleg-toelichting","Agendalijst","Beoordeling","Overzicht resultaten"],"not_rendered":{"charts":2,"images":10,"macros":1,"external_links":0,"defined_names":4,"comments":0,"pivot_tables":0},"unopened":[],"bounds":{"document_bytes":16777216,"sheet_cells":100000,"rows_first":2000,"rows_last":500,"rows_between":2000,"halvings":0,"cell_chars":16384,"cell_head_chars":4096},"cells_cut":0,"cells_raw":0,"read":"whole","date_system":"1900"}

{"sheet":"Uitleg-toelichting","index":0,"n_rows":4,"n_cols":2,"rows_kept":4,"cut":false,"hidden":false,"merged":[]}
[]
[]
[]
[null," "]

{"sheet":"Agendalijst","index":1,"n_rows":36,"n_cols":5,"rows_kept":36,"cut":false,"hidden":false,"merged":[]}
["Leerlingenlijst"]
[]
[]
[null,"Naam","eindcijfer"]
[1,"leerling 1",{"$f":"IF(B5<>\"\",'Overzicht resultaten'!C$17,\"\")","v":10}]
[{"$f":"A5+1","v":2},"leerling 2",{"$f":"IF(B6<>\"\",'Overzicht resultaten'!D$17,\"\")","v":10}]
[{"$f":"A6+1","v":3},"leerling 3",{"$f":"IF(B7<>\"\",'Overzicht resultaten'!E$17,\"\")","v":10}]
[4,"leerling 4",{"$f":"IF(B8<>\"\",'Overzicht resultaten'!F$17,\"\")","v":10}]
[5,"leerling 5",{"$f":"IF(B9<>\"\",'Overzicht resultaten'!G$17,\"\")","v":10}]
[6,"leerling 6",{"$f":"IF(B10<>\"\",'Overzicht resultaten'!H$17,\"\")","v":10}]
[7,"leerling 7",{"$f":"IF(B11<>\"\",'Overzicht resultaten'!I$17,\"\")","v":10}]
[8,"leerling 8",{"$f":"IF(B12<>\"\",'Overzicht resultaten'!J$17,\"\")","v":10}]
[9,"leerling 9",{"$f":"IF(B13<>\"\",'Overzicht resultaten'!K$17,\"\")","v":10}]
[10,"leerling 10",{"$f":"IF(B14<>\"\",'Overzicht resultaten'!L$17,\"\")","v":10}]
[11,"leerling 11",{"$f":"IF(B15<>\"\",'Overzicht resultaten'!M$17,\"\")","v":10}]
[12,null,{"$f":"IF(B16<>\"\",'Overzicht resultaten'!N$17,\"\")","v":""}]
[13,null,{"$f":"IF(B17<>\"\",'Overzicht resultaten'!O$17,\"\")","v":""}]
[14,null,{"$f":"IF(B18<>\"\",'Overzicht resultaten'!P$17,\"\")","v":""}]
[15,null,{"$f":"IF(B19<>\"\",'Overzicht resultaten'!Q$17,\"\")","v":""}]
[16,null,{"$f":"IF(B20<>\"\",'Overzicht resultaten'!R$17,\"\")","v":""}]
[17,null,{"$f":"IF(B21<>\"\",'Overzicht resultaten'!S$17,\"\")","v":""}]
[18,null,{"$f":"IF(B22<>\"\",'Overzicht resultaten'!T$17,\"\")","v":""}]
[19,null,{"$f":"IF(B23<>\"\",'Overzicht resultaten'!U$17,\"\")","v":""}]
[20,null,{"$f":"IF(B24<>\"\",'Overzicht resultaten'!V$17,\"\")","v":""}]
[21,null,{"$f":"IF(B25<>\"\",'Overzicht resultaten'!W$17,\"\")","v":""}]
[22,null,{"$f":"IF(B26<>\"\",'Overzicht resultaten'!X$17,\"\")","v":""}]
[23,null,{"$f":"IF(B27<>\"\",'Overzicht resultaten'!Y$17,\"\")","v":""}]
[24,null,{"$f":"IF(B28<>\"\",'Overzicht resultaten'!Z$17,\"\")","v":""}]
[25,null,{"$f":"IF(B29<>\"\",'Overzicht resultaten'!AA$17,\"\")","v":""}]
[{"$f":"A29+1","v":26},null,{"$f":"IF(B30<>\"\",'Overzicht resultaten'!AB$17,\"\")","v":""},null,{"$f":"IF(B30<>\"\",C30,\"\")","v":""}]
[27,null,{"$f":"IF(B31<>\"\",'Overzicht resultaten'!AC$17,\"\")","v":""},null,""]
[28,null,{"$f":"IF(B32<>\"\",'Overzicht resultaten'!AD$17,\"\")","v":""}]
[29,null,{"$f":"IF(B33<>\"\",'Overzicht resultaten'!AE$17,\"\")","v":""}]
[{"$f":"A33+1","v":30},null,{"$f":"IF(B34<>\"\",'Overzicht resultaten'!AF$17,\"\")","v":""}]
[31,null,{"$f":"IF(B35<>\"\",'Overzicht resultaten'!AG$17,\"\")","v":""}]
[32,null,{"$f":"IF(B36<>\"\",'Overzicht resultaten'!AH$17,\"\")","v":""}]

{"sheet":"Beoordeling","index":2,"n_rows":135,"n_cols":41,"rows_kept":135,"cut":false,"hidden":false,"merged":[]}
[null,"Alle criteria",null,"gewicht per onderdeel","categorie gewicht",{"$f":"'Overzicht resultaten'!C6","v":"leerling 1"},{"$f":"'Overzicht resultaten'!D6","v":"leerling 2"},{"$f":"'Overzicht resultaten'!E6","v":"leerling 3"},{"$f":"'Overzicht resultaten'!F6","v":"leerling 4"},{"$f":"'Overzicht resultaten'!G6","v":"leerling 5"},{"$f":"'Overzicht resultaten'!H6","v":"leerling 6"},{"$f":"'Overzicht resultaten'!I6","v":"leerling 7"},{"$f":"'Overzicht resultaten'!J6","v":"leerling 8"},{"$f":"'Overzicht resultaten'!K6","v":"leerling 9"},{"$f":"'Overzicht resultaten'!L6","v":"leerling 10"},{"$f":"'Overzicht resultaten'!M6","v":"leerling 11"},{"$f":"'Overzicht resultaten'!N6","v":""},{"$f":"'Overzicht resultaten'!O6","v":""},{"$f":"'Overzicht resultaten'!P6","v":""},{"$f":"'Overzicht resultaten'!Q6","v":""},{"$f":"'Overzicht resultaten'!R6","v":""},{"$f":"'Overzicht resultaten'!S6","v":""},{"$f":"'Overzicht resultaten'!T6","v":""},{"$f":"'Overzicht resultaten'!U6","v":""},{"$f":"'Overzicht resultaten'!V6","v":""},{"$f":"'Overzicht resultaten'!W6","v":""},{"$f":"'Overzicht resultaten'!X6","v":""},{"$f":"'Overzicht resultaten'!Y6","v":""},{"$f":"'Overzicht resultaten'!Z6","v":""},{"$f":"'Overzicht resultaten'!AA6","v":""},{"$f":"'Overzicht resultaten'!AB6","v":""},{"$f":"'Overzicht resultaten'!AC6","v":""},{"$f":"'Overzicht resultaten'!AD6","v":""},{"$f":"'Overzicht resultaten'!AE6","v":""},{"$f":"'Overzicht resultaten'!AF6","v":""},{"$f":"'Overzicht resultaten'!AG6","v":""},{"$f":"'Overzicht resultaten'!AH6","v":""},null,null,5]
[null,null,null,null,null,1,{"$f":"F2+1","v":2},{"$f":"G2+1","v":3},4,5,6,7,8,9,10,11,12,13,14,15,16,17,18,19,20,21,22,23,24,25,26,27,28,29,30,31,32,null,null,"x","x"]
[null,null,"A. De inleiding en vraagstelling",null,null,null,null,null,null,null,null,null,null,null,null,null,null,null,null,null,null,null,null,null,null,null,null,null,null,null,null,null,null,null,null,null,null,null,null,"x","x"]
[null,null,"De leerling ...","gewicht  (0-4)",null,null,null,null,null,null,null,null,null,null,null,null,null,null,null,null,null,null,null,null,null,null,null,null,null,null,null,null,null,null,null,null,null,null,null,"x","x"]
[1,"*","heeft een uitstekende onderzoeksvraag of hypothese geformuleerd die aan alle eisen voldoet.",1,null,null,null,null,null,null,null,null,null,null,null,null,null,null,null,null,null,null,null,null,null,null,null,null,null,null,null,null,null,null,null,null,null,null,null,{"$f":"IF(D$5>0,\"x\",0)","v":"x"},{"$f":"IF(B5=\"*\",\"x\",0)","v":"x"}]
[2,0,"heeft een beredeneerde keuze gemaakt voor een beschrijvende, vergelijkende, verklarende, voorspellende of evaluatieve hoofdvraag. ",0,null,null,null,null,null,null,null,null,null,null,null,null,null,null,null,null,null,null,null,null,null,null,null,null,null,null,null,null,null,null,null,null,null,null,null,{"$f":"IF(D$6>0,\"x\",0)","v":0},0]
[3,0,"heeft een onderzoekbare en haalbare onderzoeksvraag of hypothese geformuleerd. ",1,null,null,null,null,null,null,null,null,null,null,null,null,null,null,null,null,null,null,null,null,null,null,null,null,null,null,null,null,null,null,null,null,null,null,null,{"$f":"IF(D7>0,\"x\",0)","v":"x"},0]
[4,0,"heeft relevante deelvragen geformuleerd die een antwoord op de hoofdvraag mogelijk maken.",0,null,null,null,null,null,null,null,null,null,null,null,null,null,null,null,null,null,null,null,null,null,null,null,null,null,null,null,null,null,null,null,null,null,null,null,0,0]
[5,0,"heeft een onderzoeksvraag/hypothese geformuleerd waarin een beroep gedaan wordt op historische vaardigheden. ",0,null,null,null,null,null,null,null,null,null,null,null,null,null,null,null,null,null,null,null,null,null,null,null,null,null,null,null,null,null,null,null,null,null,null,null,0,0]
[6,"*","heeft een uitstekende selectie van bronnen gemaakt.",1,null,null,null,null,null,null,null,null,null,null,null,null,null,null,null,null,null,null,null,null,null,null,null,null,null,null,null,null,null,null,null,null,null,null,null,"x","x"]
[7,0,"heeft bepaald welke informatie hij nodig had. ",0,null,null,null,null,null,null,null,null,null,null,null,null,null,null,null,null,null,null,null,null,null,null,null,null,null,null,null,null,null,null,null,null,null,null,null,0,0]
[8,0,"heeft relevante bronnen gekozen.",0,null,null,null,null,null,null,null,null,null,null,null,null,null,null,null,null,null,null,null,null,null,null,null,null,null,null,null,null,null,null,null,null,null,null,null,0,0]
[9,0,"heeft gekozen voor voldoende variatie in bronnen.",0,null,null,null,null,null,null,null,null,null,null,null,null,null,null,null,null,null,null,null,null,null,null,null,null,null,null,null,null,null,null,null,null,null,null,null,0,0]
[10,0,"heeft oog voor de beschikbaarheid van bronnen.",0,null,null,null,null,null,null,null,null,null,null,null,null,null,null,null,null,null,null,null,null,null,null,null,null,null,null,null,null,null,null,null,null,null,null,null,0,0]
[11,0,"heeft oog voor het verschil tussen primaire en secundaire bronnen",0,null,null,null,null,null,null,null,null,null,null,null,null,null,null,null,null,null,null,null,null,null,null,null,null,null,null,null,null,null,null,null,null,null,null,null,0,0]
[12,0,"zelf invullen ...",0,null,null,null,null,null,null,null,null,null,null,null,null,null,null,null,null,null,null,null,null,null,null,null,null,null,null,null,null,null,null,null,null,null,null,null,0,0]
[null,null,null,null,1,{"$f":"IF(AND(SUM($D$5:$D$16)>0,$E$17>0),VALUE(SUMPRODUCT($D$5:$D$16*F5:F16)*100/(4*SUM($D$5:$D$16))),0)","v":0},0,0,0,0,0,0,0,0,0,0,0,0,0,0,0,0,0,0,0,0,0,0,0,0,0,0,0,0,0,0,0,null,null,"x","x"]
[null,null,"B. De onderzoeksopzet",null,null,null,null,null,null,null,null,null,null,null,null,null,null,null,null,null,null,null,null,null,null,null,null,null,null,null,null,null,null,null,null,null,null,null,null,"x","x"]
[null,null,"De leerling ...","gewicht",null,null,null,null,null,null,null,null,null,null,null,null,null,null,null,null,null,null,null,null,null,null,null,null,null,null,null,null,null,null,null,null,null,null,null,"x","x"]
[13,"*","heeft het onderzoek opgezet volgens de sociaal-wetenschappelijke methode.",1,null,null,null,null,null,null,null,null,null,null,null,null,null,null,null,null,null,null,null,null,null,null,null,null,null,null,null,null,null,null,null,null,null,null,null,{"$f":"IF(D20>0,\"x\",0)","v":"x"},"x"]
[14,0,"laat de opzet en methode van het onderzoek goed aansluiten bij de onderzoeksvraag en deelvragen.",0,null,null,null,null,null,null,null,null,null,null,null,null,null,null,null,null,null,null,null,null,null,null,null,null,null,null,null,null,null,null,null,null,null,null,null,0,0]
[15,0,"heeft het onderzoek logisch opgezet.",1,null,null,null,null,null,null,null,null,null,null,null,null,null,null,null,null,null,null,null,null,null,null,null,null,null,null,null,null,null,null,null,null,null,null,null,"x",0]
[16,0,"heeft het onderzoek opgezet volgens wetenschappelijke criteria.",0,null,null,null,null,null,null,null,null,null,null,null,null,null,null,null,null,null,null,null,null,null,null,null,null,null,null,null,null,null,null,null,null,null,null,null,0,0]
[17,0,"heeft gezorgd voor een onderzoek met voldoende diepgang.",0,null,null,null,null,null,null,null,null,null,null,null,null,null,null,null,null,null,null,null,null,null,null,null,null,null,null,null,null,null,null,null,null,null,null,null,0,0]
[18,0,"zelf invullen ...",0,null,null,null,null,null,null,null,null,null,null,null,null,null,null,null,null,null,null,null,null,null,null,null,null,null,null,null,null,null,null,null,null,null,null,null,0,0]
[19,0,"zelf invullen ...",0,null,null,null,null,null,null,null,null,null,null,null,null,null,null,null,null,null,null,null,null,null,null,null,null,null,null,null,null,null,null,null,null,null,null,null,0,0]
[null,null,null,null,2,{"$f":"IF(AND(SUM($D$20:$D$26)>0,$E$27>0),VALUE(SUMPRODUCT($D$20:$D$26*F20:F26)*100/(4*SUM($D$20:$D$26))),0)","v":0},0,0,0,0,0,0,0,0,0,0,0,0,0,0,0,0,0,0,0,0,0,0,0,0,0,0,0,0,0,0,0,null,null,"x","x"]
[null,null,"C. De (beschrijving van de) uitvoering",null,null,null,null,null,null,null,null,null,null,null,null,null,null,null,null,null,null,null,null,null,null,null,null,null,null,null,null,null,null,null,null,null,null,null,null,"x","x"]
[null,null,"De leerling ...","gewicht",null,null,null,null,null,null,null,null,null,null,null,null,null,null,null,null,null,null,null,null,null,null,null,null,null,null,null,null,null,null,null,null,null,null,null,"x","x"]
[20,"*","heeft op aqequate wijze relevante informatie verzameld.",1,null,null,null,null,null,null,null,null,null,null,null,null,null,null,null,null,null,null,null,null,null,null,null,null,null,null,null,null,null,null,null,null,null,null,null,{"$f":"IF(D30>0,\"x\",0)","v":"x"},"x"]
[21,0,"ging bij het verwerven van informatie planmatig te werk.",0,null,null,null,null,null,null,null,null,null,null,null,null,null,null,null,null,null,null,null,null,null,null,null,null,null,null,null,null,null,null,null,null,null,null,null,0,0]
[22,0,"heeft een adequate selectie gemaakt uit de beschikbare informatie.",0,null,null,null,null,null,null,null,null,null,null,null,null,null,null,null,null,null,null,null,null,null,null,null,null,null,null,null,null,null,null,null,null,null,null,null,0,0]
[23,0,"heeft leemtes in de verzamelde informatie vastgesteld en/of, waar nodig, de zoekstrategie bijgesteld.",0,null,null,null,null,null,null,null,null,null,null,null,null,null,null,null,null,null,null,null,null,null,null,null,null,null,null,null,null,null,null,null,null,null,null,null,0,0]
[24,0,"heeft de gebruikte informatie beoordeeld op betrouwbaarheid.",0,null,null,null,null,null,null,null,null,null,null,null,null,null,null,null,null,null,null,null,null,null,null,null,null,null,null,null,null,null,null,null,null,null,null,null,0,0]
[25,0,"heeft de gebruikte informatie, indien nodig, beoordeeld op representativiteit.",0,null,null,null,null,null,null,null,null,null,null,null,null,null,null,null,null,null,null,null,null,null,null,null,null,null,null,null,null,null,null,null,null,null,null,null,0,0]
[26,"*","heeft de gevonden informatie op adequate wijze verwerkt.",1,null,null,null,null,null,null,null,null,null,null,null,null,null,null,null,null,null,null,null,null,null,null,null,null,null,null,null,null,null,null,null,null,null,null,null,"x","x"]
[{"$f":"A36+1","v":27},0,"heeft de informatie op adequate wijze wijze geordend.",0,null,null,null,null,null,null,null,null,null,null,null,null,null,null,null,null,null,null,null,null,null,null,null,null,null,null,null,null,null,null,null,null,null,null,null,0,0]
[28,0,"heeft op een adequate wijze gebruik gemaakt van tabellen en grafieken.",0,null,null,null,null,null,null,null,null,null,null,null,null,null,null,null,null,null,null,null,null,null,null,null,null,null,null,null,null,null,null,null,null,null,null,null,0,0]
[29,0,"heeft relevante illustraties gebruikt.",0,null,null,null,null,null,null,null,null,null,null,null,null,null,null,null,null,null,null,null,null,null,null,null,null,null,null,null,null,null,null,null,null,null,null,null,0,0]
[{"$f":"A39+1","v":30},0,"zelf invullen ...",0,null,null,null,null,null,null,null,null,null,null,null,null,null,null,null,null,null,null,null,null,null,null,null,null,null,null,null,null,null,null,null,null,null,null,null,0,0]
[31,0,"zelf invullen ...",0,null,null,null,null,null,null,null,null,null,null,null,null,null,null,null,null,null,null,null,null,null,null,null,null,null,null,null,null,null,null,null,null,null,null,null,0,0]
[null,null,null,null,1,{"$f":"IF(AND(SUM($D$30:$D$41)>0,$E$42>0),VALUE(SUMPRODUCT($D$30:$D$41*F30:F41)*100/(4*SUM($D$30:$D$41))),0)","v":0},0,0,0,0,0,0,0,0,0,0,0,0,0,0,0,0,0,0,0,0,0,0,0,0,0,0,0,0,0,0,0,null,null,"x","x"]
[null,null,"D. Verslag van de resultaten",null,null,null,null,null,null,null,null,null,null,null,null,null,null,null,null,null,null,null,null,null,null,null,null,null,null,null,null,null,null,null,null,null,null,null,null,"x","x"]
[null,null,"De leerling ...","gewicht",null,null,null,null,null,null,null,null,null,null,null,null,null,null,null,null,null,null,null,null,null,null,null,null,null,null,null,null,null,null,null,null,null,null,null,"x","x"]
[32,"*","heeft de adequaat verslag gedaan van de resultaten van het onderzoek.",1,null,null,null,null,null,null,null,null,null,null,null,null,null,null,null,null,null,null,null,null,null,null,null,null,null,null,null,null,null,null,null,null,null,null,null,{"$f":"IF(D45>0,\"x\",0)","v":"x"},"x"]
[33,0,"heeft zorggedragen voor een duidelijke lijn in het verslag (zorgvuldig, helder en logisch opgeschreven, zonder overbodige informatie of herhaling).",0,null,null,null,null,null,null,null,null,null,null,null,null,null,null,null,null,null,null,null,null,null,null,null,null,null,null,null,null,null,null,null,null,null,null,null,0,0]
[34,0,"heeft een verslag gemaakt met een logische opbouw in hoofdstukken, paragrafen, alinea's.",0,null,null,null,null,null,null,null,null,null,null,null,null,null,null,null,null,null,null,null,null,null,null,null,null,null,null,null,null,null,null,null,null,null,null,null,0,0]
[35,0,"heeft een goede inleiding geschreven (met een probleemstelling, theoretisch kader, onderzoeks/ontwerpvragen, etc.).",0,null,null,null,null,null,null,null,null,null,null,null,null,null,null,null,null,null,null,null,null,null,null,null,null,null,null,null,null,null,null,null,null,null,null,null,0,0]
[36,0,"heeft functioneel gebruik gemaakt van illustraties, tabellen en grafieken",0,null,null,null,null,null,null,null,null,null,null,null,null,null,null,null,null,null,null,null,null,null,null,null,null,null,null,null,null,null,null,null,null,null,null,null,0,0]
[37,0,"heeft een afdoende antwoord gegeven op hoofd- en deelvragen of de hypothese afdoende onderbouwd of weerlegd.",0,null,null,null,null,null,null,null,null,null,null,null,null,null,null,null,null,null,null,null,null,null,null,null,null,null,null,null,null,null,null,null,null,null,null,null,null,0]
[38,0,"heeft zijn conclusies met argumenten onderbouwd.",0,null,null,null,null,null,null,null,null,null,null,null,null,null,null,null,null,null,null,null,null,null,null,null,null,null,null,null,null,null,null,null,null,null,null,null,null,0]
[39,0,"heeft bij het schrijven rekening gehouden met de doelgroep.",0,null,null,null,null,null,null,null,null,null,null,null,null,null,null,null,null,null,null,null,null,null,null,null,null,null,null,null,null,null,null,null,null,null,null,null,null,0]
[40,0,"heeft plagiaat vermeden.",0,null,null,null,null,null,null,null,null,null,null,null,null,null,null,null,null,null,null,null,null,null,null,null,null,null,null,null,null,null,null,null,null,null,null,null,null,0]
[41,0,"heeft adequaat gebruik gemaakt van voet- of eindnoten.",0,null,null,null,null,null,null,null,null,null,null,null,null,null,null,null,null,null,null,null,null,null,null,null,null,null,null,null,null,null,null,null,null,null,null,null,null,0]
[42,0,"heeft de literatuurlijst/bibliografie consequent vormgegeven (bijvoorbeeld via APA6). ",0,null,null,null,null,null,null,null,null,null,null,null,null,null,null,null,null,null,null,null,null,null,null,null,null,null,null,null,null,null,null,null,null,null,null,null,null,0]
[43,0,"zelf invullen ...",0,null,null,null,null,null,null,null,null,null,null,null,null,null,null,null,null,null,null,null,null,null,null,null,null,null,null,null,null,null,null,null,null,null,null,null,0,0]
[44,0,"zelf invullen ...",0,null,null,null,null,null,null,null,null,null,null,null,null,null,null,null,null,null,null,null,null,null,null,null,null,null,null,null,null,null,null,null,null,null,null,null,0,0]
[null,null,null,null,1,{"$f":"IF(AND(SUM($D$45:$D$57)>0,$E$58>0),VALUE(SUMPRODUCT($D$45:$D$57*F45:F57)*100/(4*SUM($D$45:$D$57))),0)","v":0},0,0,0,0,0,0,0,0,0,0,0,0,0,0,0,0,0,0,0,0,0,0,0,0,0,0,0,0,0,0,0,null,null,"x","x"]
[null,null,"E. Evaluatie/discussie",null,null,null,null,null,null,null,null,null,null,null,null,null,null,null,null,null,null,null,null,null,null,null,null,null,null,null,null,null,null,null,null,null,null,null,null,"x","x"]
[null,null,"De leerling ...","gewicht",null,null,null,null,null,null,null,null,null,null,null,null,null,null,null,null,null,null,null,null,null,null,null,null,null,null,null,null,null,null,null,null,null,null,null,"x","x"]
[45,"*","heeft het onderzoeksproces geëvalueerd.",1,null,null,null,null,null,null,null,null,null,null,null,null,null,null,null,null,null,null,null,null,null,null,null,null,null,null,null,null,null,null,null,null,null,null,null,{"$f":"IF(D61>0,\"x\",0)","v":"x"},"x"]
[46,0,"heeft aandacht besteed aan de goede en zwakke punten van het onderzoeksproces.",0,null,null,null,null,null,null,null,null,null,null,null,null,null,null,null,null,null,null,null,null,null,null,null,null,null,null,null,null,null,null,null,null,null,null,null,0,0]
[47,0,"heeft verbeterpunten voor de uitvoering van het onderzoek beschreven.",0,null,null,null,null,null,null,null,null,null,null,null,null,null,null,null,null,null,null,null,null,null,null,null,null,null,null,null,null,null,null,null,null,null,null,null,0,0]
[48,"*","heeft het resultaat van het onderzoek geëvalueerd.",1,null,null,null,null,null,null,null,null,null,null,null,null,null,null,null,null,null,null,null,null,null,null,null,null,null,null,null,null,null,null,null,null,null,null,null,"x","x"]
[49,0,"heeft duidelijk gemaakt in hoeverre het onderzoek een antwoord op de onderzoeksvraag mogelijk heeft gemaakt.",0,null,null,null,null,null,null,null,null,null,null,null,null,null,null,null,null,null,null,null,null,null,null,null,null,null,null,null,null,null,null,null,null,null,null,null,0,0]
[50,0,"heeft suggesties gedaan voor vervolgonderzoek.",0,null,null,null,null,null,null,null,null,null,null,null,null,null,null,null,null,null,null,null,null,null,null,null,null,null,null,null,null,null,null,null,null,null,null,null,0,{"$f":"IF(B66=\"*\",\"x\",0)","v":0}]
[51,0,"zelf invullen ...",0,null,null,null,null,null,null,null,null,null,null,null,null,null,null,null,null,null,null,null,null,null,null,null,null,null,null,null,null,null,null,null,null,null,null,null,0,0]
[52,0,"zelf invullen ...",0,null,null,null,null,null,null,null,null,null,null,null,null,null,null,null,null,null,null,null,null,null,null,null,null,null,null,null,null,null,null,null,null,null,null,null,0,0]
[null,null,null,null,1,{"$f":"IF(AND(SUM($D$61:$D$68)>0,$E$69>0),VALUE(SUMPRODUCT($D$61:$D$68*F61:F68)*100/(4*SUM($D$61:$D$68))),0)","v":0},0,0,0,0,0,0,0,0,0,0,0,0,0,0,0,0,0,0,0,0,0,0,0,0,0,0,0,0,0,0,0,null,null,"x","x"]
[null,null,"F. Taalgebruik",null,null,null,null,null,null,null,null,null,null,null,null,null,null,null,null,null,null,null,null,null,null,null,null,null,null,null,null,null,null,null,null,null,null,null,null,"x","x"]
[null,null,"De leerling ...","gewicht",null,null,null,null,null,null,null,null,null,null,null,null,null,null,null,null,null,null,null,null,null,null,null,null,null,null,null,null,null,null,null,null,null,null,null,"x","x"]
[53,"*","heeft een verslag gemaakt waar taalkundig weinig op aan te merken is.",1,null,null,null,null,null,null,null,null,null,null,null,null,null,null,null,null,null,null,null,null,null,null,null,null,null,null,null,null,null,null,null,null,null,null,null,{"$f":"IF(D72>0,\"x\",0)","v":"x"},"x"]
[54,0,"heeft gekozen voor begrijpelijk taalgebruik, afgestemd op de beoogde doelgroep",0,null,null,null,null,null,null,null,null,null,null,null,null,null,null,null,null,null,null,null,null,null,null,null,null,null,null,null,null,null,null,null,null,null,null,null,0,0]
[55,0,"heeft blijk gegeven van oorspronkelijkheid (eigen woorden, getuigend van eigengemaakte kennis)",0,null,null,null,null,null,null,null,null,null,null,null,null,null,null,null,null,null,null,null,null,null,null,null,null,null,null,null,null,null,null,null,null,null,null,null,0,0]
[56,0,"een verslag geschreven met een juiste zinsopbouw. ",0,null,null,null,null,null,null,null,null,null,null,null,null,null,null,null,null,null,null,null,null,null,null,null,null,null,null,null,null,null,null,null,null,null,null,null,0,0]
[57,0,"een verslag geschreven met een heldere en juiste interpunctie. ",0,null,null,null,null,null,null,null,null,null,null,null,null,null,null,null,null,null,null,null,null,null,null,null,null,null,null,null,null,null,null,null,null,null,null,null,0,0]
[58,0,"een verslag geschreven waarin opeenvolgende zinnen in een alinea inhoudelijk met elkaar in verband staan.",0,null,null,null,null,null,null,null,null,null,null,null,null,null,null,null,null,null,null,null,null,null,null,null,null,null,null,null,null,null,null,null,null,null,null,null,0,0]
[59,0,"een verslag geschreven waarin de spelling in orde is.",0,null,null,null,null,null,null,null,null,null,null,null,null,null,null,null,null,null,null,null,null,null,null,null,null,null,null,null,null,null,null,null,null,null,null,null,0,0]
[60,0,"zelf invullen ...",0,null,null,null,null,null,null,null,null,null,null,null,null,null,null,null,null,null,null,null,null,null,null,null,null,null,null,null,null,null,null,null,null,null,null,null,0,0]
[61,0,"zelf invullen ...",0,null,null,null,null,null,null,null,null,null,null,null,null,null,null,null,null,null,null,null,null,null,null,null,null,null,null,null,null,null,null,null,null,null,null,null,0,0]
[null,null,null,null,1,{"$f":"IF(AND(SUM($D$72:$D$80)>0,$E$81>0),VALUE(SUMPRODUCT($D$72:$D$80*F72:F80)*100/(4*SUM($D$72:$D$80))),0)","v":0},0,0,0,0,0,0,0,0,0,0,0,0,0,0,0,0,0,0,0,0,0,0,0,0,0,0,0,0,0,0,0,null,null,"x","x"]
[null,null,"G. Het proces",null,null,null,null,null,null,null,null,null,null,null,null,null,null,null,null,null,null,null,null,null,null,null,null,null,null,null,null,null,null,null,null,null,null,null,null,"x","x"]
[null,null,"de houding en creativiteit\nDe leerling ...","gewicht",null,null,null,null,null,null,null,null,null,null,null,null,null,null,null,null,null,null,null,null,null,null,null,null,null,null,null,null,null,null,null,null,null,null,null,{"$f":"IF(D83>0,\"x\",0)","v":"x"},"x"]
[62,"*","heeft blijk gegeven van een goede houding en creativiteit getoond.",1,null,null,null,null,null,null,null,null,null,null,null,null,null,null,null,null,null,null,null,null,null,null,null,null,null,null,null,null,null,null,null,null,null,null,null,null,"x"]
[63,0,"toont de wil om te weten, toont initiatief.",0,null,null,null,null,null,null,null,null,null,null,null,null,null,null,null,null,null,null,null,null,null,null,null,null,null,null,null,null,null,null,null,null,null,null,null,0,0]
[64,0,"staat open voor commentaar en wil resultaten delen.",0,null,null,null,null,null,null,null,null,null,null,null,null,null,null,null,null,null,null,null,null,null,null,null,null,null,null,null,null,null,null,null,null,null,null,null,0,0]
[{"$f":"A86+1","v":65},0,"toont een kritische, analytische benadering.",0,null,null,null,null,null,null,null,null,null,null,null,null,null,null,null,null,null,null,null,null,null,null,null,null,null,null,null,null,null,null,null,null,null,null,null,0,0]
[66,0,"toont zelfstandigheid, flexibiliteit, discipline en doorzettingsvermogen.",0,null,null,null,null,null,null,null,null,null,null,null,null,null,null,null,null,null,null,null,null,null,null,null,null,null,null,null,null,null,null,null,null,null,null,null,0,0]
[67,0,"toont een eigen inbreng en komt met originele ideeën.",0,null,null,null,null,null,null,null,null,null,null,null,null,null,null,null,null,null,null,null,null,null,null,null,null,null,null,null,null,null,null,null,null,null,null,null,0,0]
[68,0,"toont een integere professionele benadering.",null,null,null,null,null,null,null,null,null,null,null,null,null,null,null,null,null,null,null,null,null,null,null,null,null,null,null,null,null,null,null,null,null,null,null,null,0,0]
[69,0,"zelf invullen ...",0,null,null,null,null,null,null,null,null,null,null,null,null,null,null,null,null,null,null,null,null,null,null,null,null,null,null,null,null,null,null,null,null,null,null,null,0,0]
[70,0,"zelf invullen ...",0,null,null,null,null,null,null,null,null,null,null,null,null,null,null,null,null,null,null,null,null,null,null,null,null,null,null,null,null,null,null,null,null,null,null,null,0,0]
[null,null,"de planning\nDe leerling ...",null,null,null,null,null,null,null,null,null,null,null,null,null,null,null,null,null,null,null,null,null,null,null,null,null,null,null,null,null,null,null,null,null,null,null,null,"x","x"]
[71,"*","heeft zich gehouden aan de planning.",1,null,null,null,null,null,null,null,null,null,null,null,null,null,null,null,null,null,null,null,null,null,null,null,null,null,null,null,null,null,null,null,null,null,null,null,null,"x"]
[{"$f":"A94+1","v":72},0,"plant duidelijk en in realistische stappen.",null,null,null,null,null,null,null,null,null,null,null,null,null,null,null,null,null,null,null,null,null,null,null,null,null,null,null,null,null,null,null,null,null,null,null,null,{"$f":"IF(D95>0,\"x\",0)","v":0},0]
[{"$f":"A95+1","v":73},0,"rondt het werk op tijd af en levert het op tijd in.",0,null,null,null,null,null,null,null,null,null,null,null,null,null,null,null,null,null,null,null,null,null,null,null,null,null,null,null,null,null,null,null,null,null,null,null,0,0]
[{"$f":"A96+1","v":74},0,"heeft problemen in planning overwonnen en verantwoord.",0,null,null,null,null,null,null,null,null,null,null,null,null,null,null,null,null,null,null,null,null,null,null,null,null,null,null,null,null,null,null,null,null,null,null,null,0,0]
[75,0,"toont zichtbare groei in houding, vaardigheden en/of kennis.",0,null,null,null,null,null,null,null,null,null,null,null,null,null,null,null,null,null,null,null,null,null,null,null,null,null,null,null,null,null,null,null,null,null,null,null,0,0]
[76,0,"zorgt voor goede communicatie met begeleider op afgesproken momenten en verwerkt feedback op de juiste manier.",0,null,null,null,null,null,null,null,null,null,null,null,null,null,null,null,null,null,null,null,null,null,null,null,null,null,null,null,null,null,null,null,null,null,null,null,0,0]
[77,0,"kan zelf een manier vinden om door te gaan als onderzoek vastloopt.",0,null,null,null,null,null,null,null,null,null,null,null,null,null,null,null,null,null,null,null,null,null,null,null,null,null,null,null,null,null,null,null,null,null,null,null,0,0]
[78,0,"zelf invullen ...",0,null,null,null,null,null,null,null,null,null,null,null,null,null,null,null,null,null,null,null,null,null,null,null,null,null,null,null,null,null,null,null,null,null,null,null,0,0]
[79,0,"zelf invullen ...",0,null,null,null,null,null,null,null,null,null,null,null,null,null,null,null,null,null,null,null,null,null,null,null,null,null,null,null,null,null,null,null,null,null,null,null,0,0]
[null,null,"zelfstandigheid en samenwerking\nDe leerling ...",null,null,null,null,null,null,null,null,null,null,null,null,null,null,null,null,null,null,null,null,null,null,null,null,null,null,null,null,null,null,null,null,null,null,null,null,"x","x"]
[80,"*","heeft zelfstandig gewerkt en goed samengewerkt.",1,null,null,null,null,null,null,null,null,null,null,null,null,null,null,null,null,null,null,null,null,null,null,null,null,null,null,null,null,null,null,null,null,null,null,null,null,"x"]
[81,0,"kan naar een ander luisteren, met een ander rekening houden, een ander ondersteunen en waarderen.",0,null,null,null,null,null,null,null,null,null,null,null,null,null,null,null,null,null,null,null,null,null,null,null,null,null,null,null,null,null,null,null,null,null,null,null,{"$f":"IF(D105>0,\"x\",0)","v":0},0]
[{"$f":"A105+1","v":82},0,"kan adequaat overleggen en feedback geven.",0,null,null,null,null,null,null,null,null,null,null,null,null,null,null,null,null,null,null,null,null,null,null,null,null,null,null,null,null,null,null,null,null,null,null,null,0,0]
[{"$f":"A106+1","v":83},0,"maakt gebruik van de talenten en voorkeuren van een ander.",0,null,null,null,null,null,null,null,null,null,null,null,null,null,null,null,null,null,null,null,null,null,null,null,null,null,null,null,null,null,null,null,null,null,null,null,0,0]
[{"$f":"A107+1","v":84},0,"maakt een verdeling van taken.",0,null,null,null,null,null,null,null,null,null,null,null,null,null,null,null,null,null,null,null,null,null,null,null,null,null,null,null,null,null,null,null,null,null,null,null,0,0]
[{"$f":"A108+1","v":85},0,"spreekt anderen aan op het nakomen van afspraken.",0,null,null,null,null,null,null,null,null,null,null,null,null,null,null,null,null,null,null,null,null,null,null,null,null,null,null,null,null,null,null,null,null,null,null,null,0,0]
[{"$f":"A109+1","v":86},0,"zelf invullen ...",0,null,null,null,null,null,null,null,null,null,null,null,null,null,null,null,null,null,null,null,null,null,null,null,null,null,null,null,null,null,null,null,null,null,null,null,0,0]
[87,0,"zelf invullen ...",0,null,null,null,null,null,null,null,null,null,null,null,null,null,null,null,null,null,null,null,null,null,null,null,null,null,null,null,null,null,null,null,null,null,null,null,0,0]
[null,null,"de reflectie\nDe leerling ...",null,null,null,null,null,null,null,null,null,null,null,null,null,null,null,null,null,null,null,null,null,null,null,null,null,null,null,null,null,null,null,null,null,null,null,null,"x","x"]
[88,"*","heeft uitstekend gereflecteerd op inhoud en proces.",1,null,null,null,null,null,null,null,null,null,null,null,null,null,null,null,null,null,null,null,null,null,null,null,null,null,null,null,null,null,null,null,null,null,null,null,null,"x"]
[89,0,"kan reflecteren op het proces (houding, creativiteit, planning, voortgang, samenwerking).",0,null,null,null,null,null,null,null,null,null,null,null,null,null,null,null,null,null,null,null,null,null,null,null,null,null,null,null,null,null,null,null,null,null,null,null,0,0]
[90,0,"kan reflecteren op (de kwaliteit van) de behaalde resultaten.",0,null,null,null,null,null,null,null,null,null,null,null,null,null,null,null,null,null,null,null,null,null,null,null,null,null,null,null,null,null,null,null,null,null,null,null,0,0]
[{"$f":"A115+1","v":91},0,"kan reflecteren op eigen gedrag en het eigen leerproces.",0,null,null,null,null,null,null,null,null,null,null,null,null,null,null,null,null,null,null,null,null,null,null,null,null,null,null,null,null,null,null,null,null,null,null,null,0,0]
[92,0,"zelf invullen ...",0,null,null,null,null,null,null,null,null,null,null,null,null,null,null,null,null,null,null,null,null,null,null,null,null,null,null,null,null,null,null,null,null,null,null,null,0,0]
[93,0,"zelf invullen ...",0,null,null,null,null,null,null,null,null,null,null,null,null,null,null,null,null,null,null,null,null,null,null,null,null,null,null,null,null,null,null,null,null,null,null,null,0,0]
[null,null,null,null,1,{"$f":"IF(AND(SUM($D$85:$D$118)>0,$E$119>0),VALUE(SUMPRODUCT($D$85:$D$118*F85:F118)*100/(4*SUM($D$85:$D$118))),0)","v":0},{"$f":"IF(AND(SUM($D$85:$D$118)>0,$E$119>0),VALUE(SUMPRODUCT($D$85:$D$118*G85:G118)*100/(4*SUM($D$85:$D$118))),0)","v":0},0,0,0,0,0,0,0,0,0,0,0,0,0,0,0,{"$f":"IF(AND(SUM($D$85:$D$118)>0,$E$119>0),VALUE(SUMPRODUCT($D$85:$D$118*W85:W118)*100/(4*SUM($D$85:$D$118))),0)","v":0},{"$f":"IF(AND(SUM($D$85:$D$118)>0,$E$119>0),VALUE(SUMPRODUCT($D$85:$D$118*X85:X118)*100/(4*SUM($D$85:$D$118))),0)","v":0},0,0,0,0,0,0,0,0,0,0,0,0,0,null,null,"x","x"]
[null,null,"H. Het werkplan",null,null,null,null,null,null,null,null,null,null,null,null,null,null,null,null,null,null,null,null,null,null,null,null,null,null,null,null,null,null,null,null,null,null,null,null,"x","x"]
[null,null,"De werkvoorbereiding\nDe leerling ...","gewicht",null,null,null,null,null,null,null,null,null,null,null,null,null,null,null,null,null,null,null,null,null,null,null,null,null,null,null,null,null,null,null,null,null,null,null,"x","x"]
[94,"*","heeft het onderzoek goed voorbereid.",1,null,null,null,null,null,null,null,null,null,null,null,null,null,null,null,null,null,null,null,null,null,null,null,null,null,null,null,null,null,null,null,null,null,null,null,null,"x"]
[95,0,"heeft goede tussenstappen gemaakt en goede tussenproducten opgeleverd. ",0,null,null,null,null,null,null,null,null,null,null,null,null,null,null,null,null,null,null,null,null,null,null,null,null,null,null,null,null,null,null,null,null,null,null,null,{"$f":"IF(D123>0,\"x\",0)","v":0},0]
[{"$f":"A123+1","v":96},0,"heeft zorggedragen voor ene goede taakverdeling.",0,null,null,null,null,null,null,null,null,null,null,null,null,null,null,null,null,null,null,null,null,null,null,null,null,null,null,null,null,null,null,null,null,null,null,null,0,0]
[97,0,"zelf invullen ...",0,null,null,null,null,null,null,null,null,null,null,null,null,null,null,null,null,null,null,null,null,null,null,null,null,null,null,null,null,null,null,null,null,null,null,null,0,0]
[98,0,"zelf invullen ...",0,null,null,null,null,null,null,null,null,null,null,null,null,null,null,null,null,null,null,null,null,null,null,null,null,null,null,null,null,null,null,null,null,null,null,null,0,0]
[null,null,null,null,1,{"$f":"IF(AND(SUM($D$123:$D$126)>0,$E$127>0),VALUE(SUMPRODUCT($D$123:$D$126*F123:F126)*100/(4*SUM($D$123:$D$126))),0)","v":0},0,0,0,0,0,0,0,0,0,0,0,0,0,0,0,0,0,0,0,0,0,0,0,0,0,0,0,0,0,0,0,null,null,"x","x"]
[null,null,"I. Het logboek",null,null,null,null,null,null,null,null,null,null,null,null,null,null,null,null,null,null,null,null,null,null,null,null,null,null,null,null,null,null,null,null,null,null,null,null,"x","x"]
[null,null,"De leerling ...","gewicht",null,null,null,null,null,null,null,null,null,null,null,null,null,null,null,null,null,null,null,null,null,null,null,null,null,null,null,null,null,null,null,null,null,null,null,"x","x"]
[99,"*","heeft een logboek bijgehouden dat inzicht geeft in het verloop van het onderzoek, de verzameling van de gegevens en de verslaglegging.",1,null,null,null,null,null,null,null,null,null,null,null,null,null,null,null,null,null,null,null,null,null,null,null,null,null,null,null,null,null,null,null,null,null,null,null,{"$f":"IF(D130>0,\"x\",0)","v":"x"},{"$f":"IF(B130=\"*\",\"x\",0)","v":"x"}]
[{"$f":"A130+1","v":100},0,"heeft in het logboek beschreven wat hij leert door te reflecteren op de inhoud van het onderzoek.",0,null,null,null,null,null,null,null,null,null,null,null,null,null,null,null,null,null,null,null,null,null,null,null,null,null,null,null,null,null,null,null,null,null,null,null,0,0]
[{"$f":"A131+1","v":101},0,"heeft in het logboek beschreven wat hij leert door te reflecteren op het onderzoeksproces.",0,null,null,null,null,null,null,null,null,null,null,null,null,null,null,null,null,null,null,null,null,null,null,null,null,null,null,null,null,null,null,null,null,null,null,null,0,0]
[102,0,"zelf invullen ...",0,null,null,null,null,null,null,null,null,null,null,null,null,null,null,null,null,null,null,null,null,null,null,null,null,null,null,null,null,null,null,null,null,null,null,null,0,0]
[103,0,"zelf invullen ...",0,null,null,null,null,null,null,null,null,null,null,null,null,null,null,null,null,null,null,null,null,null,null,null,null,null,null,null,null,null,null,null,null,null,null,null,0,0]
[null,null,null,null,1,{"$f":"IF(AND(SUM($D$130:$D$134)>0,$E$135>0),VALUE(SUMPRODUCT($D$130:$D$134*F130:F134)*100/(4*SUM($D$130:$D$134))),0)","v":0},{"$f":"IF(AND(SUM($D$130:$D$134)>0,$E$135>0),VALUE(SUMPRODUCT($D$130:$D$134*G130:G134)*100/(4*SUM($D$130:$D$134))),0)","v":0},0,0,0,0,0,0,0,0,0,0,0,0,0,0,0,0,0,0,0,0,0,0,0,0,0,0,0,0,0,0,null,null,"x","x"]

{"sheet":"Overzicht resultaten","index":3,"n_rows":17,"n_cols":36,"rows_kept":17,"cut":false,"hidden":false,"merged":[]}
[]
[null,null,null,"Overzicht resultaten: niets invullen!"]
[]
[]
[null,null,1,{"$f":"C5+1","v":2},{"$f":"D5+1","v":3},4,5,6,7,8,9,10,11,12,13,14,15,16,17,18,19,20,21,22,23,24,25,26,27,28,29,30,{"$f":"AF5+1","v":31},32,null,"gemiddelde"]
["weging","categorie",{"$f":"IF(Agendalijst!B5=\"\",\"\",Agendalijst!B5)","v":"leerling 1"},{"$f":"IF(Agendalijst!B6=\"\",\"\",Agendalijst!B6)","v":"leerling 2"},{"$f":"IF(Agendalijst!B7=\"\",\"\",Agendalijst!B7)","v":"leerling 3"},{"$f":"IF(Agendalijst!B8=\"\",\"\",Agendalijst!B8)","v":"leerling 4"},{"$f":"IF(Agendalijst!B9=\"\",\"\",Agendalijst!B9)","v":"leerling 5"},{"$f":"IF(Agendalijst!B10=\"\",\"\",Agendalijst!B10)","v":"leerling 6"},{"$f":"IF(Agendalijst!B11=\"\",\"\",Agendalijst!B11)","v":"leerling 7"},{"$f":"IF(Agendalijst!B12=\"\",\"\",Agendalijst!B12)","v":"leerling 8"},{"$f":"IF(Agendalijst!B13=\"\",\"\",Agendalijst!B13)","v":"leerling 9"},{"$f":"IF(Agendalijst!B14=\"\",\"\",Agendalijst!B14)","v":"leerling 10"},{"$f":"IF(Agendalijst!B15=\"\",\"\",Agendalijst!B15)","v":"leerling 11"},{"$f":"IF(Agendalijst!B16=\"\",\"\",Agendalijst!B16)","v":""},{"$f":"IF(Agendalijst!B17=\"\",\"\",Agendalijst!B17)","v":""},{"$f":"IF(Agendalijst!B18=\"\",\"\",Agendalijst!B18)","v":""},{"$f":"IF(Agendalijst!B19=\"\",\"\",Agendalijst!B19)","v":""},{"$f":"IF(Agendalijst!B20=\"\",\"\",Agendalijst!B20)","v":""},{"$f":"IF(Agendalijst!B21=\"\",\"\",Agendalijst!B21)","v":""},{"$f":"IF(Agendalijst!B22=\"\",\"\",Agendalijst!B22)","v":""},{"$f":"IF(Agendalijst!B23=\"\",\"\",Agendalijst!B23)","v":""},{"$f":"IF(Agendalijst!B24=\"\",\"\",Agendalijst!B24)","v":""},{"$f":"IF(Agendalijst!B25=\"\",\"\",Agendalijst!B25)","v":""},{"$f":"IF(Agendalijst!B26=\"\",\"\",Agendalijst!B26)","v":""},{"$f":"IF(Agendalijst!B27=\"\",\"\",Agendalijst!B27)","v":""},{"$f":"IF(Agendalijst!B28=\"\",\"\",Agendalijst!B28)","v":""},{"$f":"IF(Agendalijst!B29=\"\",\"\",Agendalijst!B29)","v":""},{"$f":"IF(Agendalijst!B30=\"\",\"\",Agendalijst!B30)","v":""},{"$f":"IF(Agendalijst!B31=\"\",\"\",Agendalijst!B31)","v":""},{"$f":"IF(Agendalijst!B32=\"\",\"\",Agendalijst!B32)","v":""},{"$f":"IF(Agendalijst!B33=\"\",\"\",Agendalijst!B33)","v":""},{"$f":"IF(Agendalijst!B34=\"\",\"\",Agendalijst!B34)","v":""},{"$f":"IF(Agendalijst!B35=\"\",\"\",Agendalijst!B35)","v":""},{"$f":"IF(Agendalijst!B36=\"\",\"\",Agendalijst!B36)","v":""},null,"klas"]
[{"$f":"Beoordeling!E17","v":1},"A",{"$f":"IF(AND($A7>0,C6<>\"\"),Beoordeling!F17,\"\")","v":0},{"$f":"IF(AND($A7>0,D6<>\"\"),Beoordeling!G17,\"\")","v":0},{"$f":"IF(AND($A7>0,E6<>\"\"),Beoordeling!H17,\"\")","v":0},{"$f":"IF(AND($A7>0,F6<>\"\"),Beoordeling!I17,\"\")","v":0},{"$f":"IF(AND($A7>0,G6<>\"\"),Beoordeling!J17,\"\")","v":0},{"$f":"IF(AND($A7>0,H6<>\"\"),Beoordeling!K17,\"\")","v":0},{"$f":"IF(AND($A7>0,I6<>\"\"),Beoordeling!L17,\"\")","v":0},{"$f":"IF(AND($A7>0,J6<>\"\"),Beoordeling!M17,\"\")","v":0},{"$f":"IF(AND($A7>0,K6<>\"\"),Beoordeling!N17,\"\")","v":0},{"$f":"IF(AND($A7>0,L6<>\"\"),Beoordeling!O17,\"\")","v":0},{"$f":"IF(AND($A7>0,M6<>\"\"),Beoordeling!P17,\"\")","v":0},{"$f":"IF(AND($A7>0,N6<>\"\"),Beoordeling!Q17,\"\")","v":""},{"$f":"IF(AND($A7>0,O6<>\"\"),Beoordeling!R17,\"\")","v":""},{"$f":"IF(AND($A7>0,P6<>\"\"),Beoordeling!S17,\"\")","v":""},{"$f":"IF(AND($A7>0,Q6<>\"\"),Beoordeling!T17,\"\")","v":""},{"$f":"IF(AND($A7>0,R6<>\"\"),Beoordeling!U17,\"\")","v":""},{"$f":"IF(AND($A7>0,S6<>\"\"),Beoordeling!V17,\"\")","v":""},{"$f":"IF(AND($A7>0,T6<>\"\"),Beoordeling!W17,\"\")","v":""},{"$f":"IF(AND($A7>0,U6<>\"\"),Beoordeling!X17,\"\")","v":""},{"$f":"IF(AND($A7>0,V6<>\"\"),Beoordeling!Y17,\"\")","v":""},{"$f":"IF(AND($A7>0,W6<>\"\"),Beoordeling!Z17,\"\")","v":""},{"$f":"IF(AND($A7>0,X6<>\"\"),Beoordeling!AA17,\"\")","v":""},{"$f":"IF(AND($A7>0,Y6<>\"\"),Beoordeling!AB17,\"\")","v":""},{"$f":"IF(AND($A7>0,Z6<>\"\"),Beoordeling!AC17,\"\")","v":""},{"$f":"IF(AND($A7>0,AA6<>\"\"),Beoordeling!AD17,\"\")","v":""},{"$f":"IF(AND($A7>0,AB6<>\"\"),Beoordeling!AE17,\"\")","v":""},{"$f":"IF(AND($A7>0,AC6<>\"\"),Beoordeling!AF17,\"\")","v":""},{"$f":"IF(AND($A7>0,AD6<>\"\"),Beoordeling!AG17,\"\")","v":""},{"$f":"IF(AND($A7>0,AE6<>\"\"),Beoordeling!AH17,\"\")","v":""},{"$f":"IF(AND($A7>0,AF6<>\"\"),Beoordeling!AI17,\"\")","v":""},{"$f":"IF(AND($A7>0,AG6<>\"\"),Beoordeling!AJ17,\"\")","v":""},{"$f":"IF(AND($A7>0,AH6<>\"\"),Beoordeling!AK17,\"\")","v":""},null,{"$f":"IF(A7>0,AVERAGE(C7:AH7),\"-\")","v":0}]
[{"$f":"Beoordeling!E27","v":2},"B",{"$f":"IF(AND($A$8>0,C6<>\"\"),Beoordeling!F27,\"\")","v":0},{"$f":"IF(AND($A$8>0,D6<>\"\"),Beoordeling!G27,\"\")","v":0},{"$f":"IF(AND($A$8>0,E6<>\"\"),Beoordeling!H27,\"\")","v":0},{"$f":"IF(AND($A$8>0,F6<>\"\"),Beoordeling!I27,\"\")","v":0},{"$f":"IF(AND($A$8>0,G6<>\"\"),Beoordeling!J27,\"\")","v":0},{"$f":"IF(AND($A$8>0,H6<>\"\"),Beoordeling!K27,\"\")","v":0},{"$f":"IF(AND($A$8>0,I6<>\"\"),Beoordeling!L27,\"\")","v":0},{"$f":"IF(AND($A$8>0,J6<>\"\"),Beoordeling!M27,\"\")","v":0},{"$f":"IF(AND($A$8>0,K6<>\"\"),Beoordeling!N27,\"\")","v":0},{"$f":"IF(AND($A$8>0,L6<>\"\"),Beoordeling!O27,\"\")","v":0},{"$f":"IF(AND($A$8>0,M6<>\"\"),Beoordeling!P27,\"\")","v":0},{"$f":"IF(AND($A$8>0,N6<>\"\"),Beoordeling!Q27,\"\")","v":""},{"$f":"IF(AND($A$8>0,O6<>\"\"),Beoordeling!R27,\"\")","v":""},{"$f":"IF(AND($A$8>0,P6<>\"\"),Beoordeling!S27,\"\")","v":""},{"$f":"IF(AND($A$8>0,Q6<>\"\"),Beoordeling!T27,\"\")","v":""},{"$f":"IF(AND($A$8>0,R6<>\"\"),Beoordeling!U27,\"\")","v":""},{"$f":"IF(AND($A$8>0,S6<>\"\"),Beoordeling!V27,\"\")","v":""},{"$f":"IF(AND($A$8>0,T6<>\"\"),Beoordeling!W27,\"\")","v":""},{"$f":"IF(AND($A$8>0,U6<>\"\"),Beoordeling!X27,\"\")","v":""},{"$f":"IF(AND($A$8>0,V6<>\"\"),Beoordeling!Y27,\"\")","v":""},{"$f":"IF(AND($A$8>0,W6<>\"\"),Beoordeling!Z27,\"\")","v":""},{"$f":"IF(AND($A$8>0,X6<>\"\"),Beoordeling!AA27,\"\")","v":""},{"$f":"IF(AND($A$8>0,Y6<>\"\"),Beoordeling!AB27,\"\")","v":""},{"$f":"IF(AND($A$8>0,Z6<>\"\"),Beoordeling!AC27,\"\")","v":""},{"$f":"IF(AND($A$8>0,AA6<>\"\"),Beoordeling!AD27,\"\")","v":""},{"$f":"IF(AND($A$8>0,AB6<>\"\"),Beoordeling!AE27,\"\")","v":""},{"$f":"IF(AND($A$8>0,AC6<>\"\"),Beoordeling!AF27,\"\")","v":""},{"$f":"IF(AND($A$8>0,AD6<>\"\"),Beoordeling!AG27,\"\")","v":""},{"$f":"IF(AND($A$8>0,AE6<>\"\"),Beoordeling!AH27,\"\")","v":""},{"$f":"IF(AND($A$8>0,AF6<>\"\"),Beoordeling!AI27,\"\")","v":""},{"$f":"IF(AND($A$8>0,AG6<>\"\"),Beoordeling!AJ27,\"\")","v":""},{"$f":"IF(AND($A$8>0,AH6<>\"\"),Beoordeling!AK27,\"\")","v":""},null,{"$f":"IF(A8>0,AVERAGE(C8:AH8),\"-\")","v":0}]
[{"$f":"Beoordeling!E42","v":1},"C",{"$f":"IF(AND($A$9>0,C6<>\"\"),Beoordeling!F42,\"\")","v":0},{"$f":"IF(AND($A$9>0,D6<>\"\"),Beoordeling!G42,\"\")","v":0},{"$f":"IF(AND($A$9>0,E6<>\"\"),Beoordeling!H42,\"\")","v":0},{"$f":"IF(AND($A$9>0,F6<>\"\"),Beoordeling!I42,\"\")","v":0},{"$f":"IF(AND($A$9>0,G6<>\"\"),Beoordeling!J42,\"\")","v":0},{"$f":"IF(AND($A$9>0,H6<>\"\"),Beoordeling!K42,\"\")","v":0},{"$f":"IF(AND($A$9>0,I6<>\"\"),Beoordeling!L42,\"\")","v":0},{"$f":"IF(AND($A$9>0,J6<>\"\"),Beoordeling!M42,\"\")","v":0},{"$f":"IF(AND($A$9>0,K6<>\"\"),Beoordeling!N42,\"\")","v":0},{"$f":"IF(AND($A$9>0,L6<>\"\"),Beoordeling!O42,\"\")","v":0},{"$f":"IF(AND($A$9>0,M6<>\"\"),Beoordeling!P42,\"\")","v":0},{"$f":"IF(AND($A$9>0,N6<>\"\"),Beoordeling!Q42,\"\")","v":""},{"$f":"IF(AND($A$9>0,O6<>\"\"),Beoordeling!R42,\"\")","v":""},{"$f":"IF(AND($A$9>0,P6<>\"\"),Beoordeling!S42,\"\")","v":""},{"$f":"IF(AND($A$9>0,Q6<>\"\"),Beoordeling!T42,\"\")","v":""},{"$f":"IF(AND($A$9>0,R6<>\"\"),Beoordeling!U42,\"\")","v":""},{"$f":"IF(AND($A$9>0,S6<>\"\"),Beoordeling!V42,\"\")","v":""},{"$f":"IF(AND($A$9>0,T6<>\"\"),Beoordeling!W42,\"\")","v":""},{"$f":"IF(AND($A$9>0,U6<>\"\"),Beoordeling!X42,\"\")","v":""},{"$f":"IF(AND($A$9>0,V6<>\"\"),Beoordeling!Y42,\"\")","v":""},{"$f":"IF(AND($A$9>0,W6<>\"\"),Beoordeling!Z42,\"\")","v":""},{"$f":"IF(AND($A$9>0,X6<>\"\"),Beoordeling!AA42,\"\")","v":""},{"$f":"IF(AND($A$9>0,Y6<>\"\"),Beoordeling!AB42,\"\")","v":""},{"$f":"IF(AND($A$9>0,Z6<>\"\"),Beoordeling!AC42,\"\")","v":""},{"$f":"IF(AND($A$9>0,AA6<>\"\"),Beoordeling!AD42,\"\")","v":""},{"$f":"IF(AND($A$9>0,AB6<>\"\"),Beoordeling!AE42,\"\")","v":""},{"$f":"IF(AND($A$9>0,AC6<>\"\"),Beoordeling!AF42,\"\")","v":""},{"$f":"IF(AND($A$9>0,AD6<>\"\"),Beoordeling!AG42,\"\")","v":""},{"$f":"IF(AND($A$9>0,AE6<>\"\"),Beoordeling!AH42,\"\")","v":""},{"$f":"IF(AND($A$9>0,AF6<>\"\"),Beoordeling!AI42,\"\")","v":""},{"$f":"IF(AND($A$9>0,AG6<>\"\"),Beoordeling!AJ42,\"\")","v":""},{"$f":"IF(AND($A$9>0,AH6<>\"\"),Beoordeling!AK42,\"\")","v":""},null,0]
[{"$f":"Beoordeling!E58","v":1},"D",{"$f":"IF(AND($A$10>0,C6<>\"\"),Beoordeling!F58,\"\")","v":0},{"$f":"IF(AND($A$10>0,D6<>\"\"),Beoordeling!G58,\"\")","v":0},{"$f":"IF(AND($A$10>0,E6<>\"\"),Beoordeling!H58,\"\")","v":0},{"$f":"IF(AND($A$10>0,F6<>\"\"),Beoordeling!I58,\"\")","v":0},{"$f":"IF(AND($A$10>0,G6<>\"\"),Beoordeling!J58,\"\")","v":0},{"$f":"IF(AND($A$10>0,H6<>\"\"),Beoordeling!K58,\"\")","v":0},{"$f":"IF(AND($A$10>0,I6<>\"\"),Beoordeling!L58,\"\")","v":0},{"$f":"IF(AND($A$10>0,J6<>\"\"),Beoordeling!M58,\"\")","v":0},{"$f":"IF(AND($A$10>0,K6<>\"\"),Beoordeling!N58,\"\")","v":0},{"$f":"IF(AND($A$10>0,L6<>\"\"),Beoordeling!O58,\"\")","v":0},{"$f":"IF(AND($A$10>0,M6<>\"\"),Beoordeling!P58,\"\")","v":0},{"$f":"IF(AND($A$10>0,N6<>\"\"),Beoordeling!Q58,\"\")","v":""},{"$f":"IF(AND($A$10>0,O6<>\"\"),Beoordeling!R58,\"\")","v":""},{"$f":"IF(AND($A$10>0,P6<>\"\"),Beoordeling!S58,\"\")","v":""},{"$f":"IF(AND($A$10>0,Q6<>\"\"),Beoordeling!T58,\"\")","v":""},{"$f":"IF(AND($A$10>0,R6<>\"\"),Beoordeling!U58,\"\")","v":""},{"$f":"IF(AND($A$10>0,S6<>\"\"),Beoordeling!V58,\"\")","v":""},{"$f":"IF(AND($A$10>0,T6<>\"\"),Beoordeling!W58,\"\")","v":""},{"$f":"IF(AND($A$10>0,U6<>\"\"),Beoordeling!X58,\"\")","v":""},{"$f":"IF(AND($A$10>0,V6<>\"\"),Beoordeling!Y58,\"\")","v":""},{"$f":"IF(AND($A$10>0,W6<>\"\"),Beoordeling!Z58,\"\")","v":""},{"$f":"IF(AND($A$10>0,X6<>\"\"),Beoordeling!AA58,\"\")","v":""},{"$f":"IF(AND($A$10>0,Y6<>\"\"),Beoordeling!AB58,\"\")","v":""},{"$f":"IF(AND($A$10>0,Z6<>\"\"),Beoordeling!AC58,\"\")","v":""},{"$f":"IF(AND($A$10>0,AA6<>\"\"),Beoordeling!AD58,\"\")","v":""},{"$f":"IF(AND($A$10>0,AB6<>\"\"),Beoordeling!AE58,\"\")","v":""},{"$f":"IF(AND($A$10>0,AC6<>\"\"),Beoordeling!AF58,\"\")","v":""},{"$f":"IF(AND($A$10>0,AD6<>\"\"),Beoordeling!AG58,\"\")","v":""},{"$f":"IF(AND($A$10>0,AE6<>\"\"),Beoordeling!AH58,\"\")","v":""},{"$f":"IF(AND($A$10>0,AF6<>\"\"),Beoordeling!AI58,\"\")","v":""},{"$f":"IF(AND($A$10>0,AG6<>\"\"),Beoordeling!AJ58,\"\")","v":""},{"$f":"IF(AND($A$10>0,AH6<>\"\"),Beoordeling!AK58,\"\")","v":""},null,0]
[{"$f":"Beoordeling!E69","v":1},"E",{"$f":"IF(AND($A$11>0,C6<>\"\"),Beoordeling!F69,\"\")","v":0},{"$f":"IF(AND($A$11>0,D6<>\"\"),Beoordeling!G69,\"\")","v":0},{"$f":"IF(AND($A$11>0,E6<>\"\"),Beoordeling!H69,\"\")","v":0},{"$f":"IF(AND($A$11>0,F6<>\"\"),Beoordeling!I69,\"\")","v":0},{"$f":"IF(AND($A$11>0,G6<>\"\"),Beoordeling!J69,\"\")","v":0},{"$f":"IF(AND($A$11>0,H6<>\"\"),Beoordeling!K69,\"\")","v":0},{"$f":"IF(AND($A$11>0,I6<>\"\"),Beoordeling!L69,\"\")","v":0},{"$f":"IF(AND($A$11>0,J6<>\"\"),Beoordeling!M69,\"\")","v":0},{"$f":"IF(AND($A$11>0,K6<>\"\"),Beoordeling!N69,\"\")","v":0},{"$f":"IF(AND($A$11>0,L6<>\"\"),Beoordeling!O69,\"\")","v":0},{"$f":"IF(AND($A$11>0,M6<>\"\"),Beoordeling!P69,\"\")","v":0},{"$f":"IF(AND($A$11>0,N6<>\"\"),Beoordeling!Q69,\"\")","v":""},{"$f":"IF(AND($A$11>0,O6<>\"\"),Beoordeling!R69,\"\")","v":""},{"$f":"IF(AND($A$11>0,P6<>\"\"),Beoordeling!S69,\"\")","v":""},{"$f":"IF(AND($A$11>0,Q6<>\"\"),Beoordeling!T69,\"\")","v":""},{"$f":"IF(AND($A$11>0,R6<>\"\"),Beoordeling!U69,\"\")","v":""},{"$f":"IF(AND($A$11>0,S6<>\"\"),Beoordeling!V69,\"\")","v":""},{"$f":"IF(AND($A$11>0,T6<>\"\"),Beoordeling!W69,\"\")","v":""},{"$f":"IF(AND($A$11>0,U6<>\"\"),Beoordeling!X69,\"\")","v":""},{"$f":"IF(AND($A$11>0,V6<>\"\"),Beoordeling!Y69,\"\")","v":""},{"$f":"IF(AND($A$11>0,W6<>\"\"),Beoordeling!Z69,\"\")","v":""},{"$f":"IF(AND($A$11>0,X6<>\"\"),Beoordeling!AA69,\"\")","v":""},{"$f":"IF(AND($A$11>0,Y6<>\"\"),Beoordeling!AB69,\"\")","v":""},{"$f":"IF(AND($A$11>0,Z6<>\"\"),Beoordeling!AC69,\"\")","v":""},{"$f":"IF(AND($A$11>0,AA6<>\"\"),Beoordeling!AD69,\"\")","v":""},{"$f":"IF(AND($A$11>0,AB6<>\"\"),Beoordeling!AE69,\"\")","v":""},{"$f":"IF(AND($A$11>0,AC6<>\"\"),Beoordeling!AF69,\"\")","v":""},{"$f":"IF(AND($A$11>0,AD6<>\"\"),Beoordeling!AG69,\"\")","v":""},{"$f":"IF(AND($A$11>0,AE6<>\"\"),Beoordeling!AH69,\"\")","v":""},{"$f":"IF(AND($A$11>0,AF6<>\"\"),Beoordeling!AI69,\"\")","v":""},{"$f":"IF(AND($A$11>0,AG6<>\"\"),Beoordeling!AJ69,\"\")","v":""},{"$f":"IF(AND($A$11>0,AH6<>\"\"),Beoordeling!AK69,\"\")","v":""},null,0]
[{"$f":"Beoordeling!E81","v":1},"F",{"$f":"IF(AND($A$12>0,C6<>\"\"),Beoordeling!F81,\"\")","v":0},{"$f":"IF(AND($A$12>0,D6<>\"\"),Beoordeling!G81,\"\")","v":0},{"$f":"IF(AND($A$12>0,E6<>\"\"),Beoordeling!H81,\"\")","v":0},{"$f":"IF(AND($A$12>0,F6<>\"\"),Beoordeling!I81,\"\")","v":0},{"$f":"IF(AND($A$12>0,G6<>\"\"),Beoordeling!J81,\"\")","v":0},{"$f":"IF(AND($A$12>0,H6<>\"\"),Beoordeling!K81,\"\")","v":0},{"$f":"IF(AND($A$12>0,I6<>\"\"),Beoordeling!L81,\"\")","v":0},{"$f":"IF(AND($A$12>0,J6<>\"\"),Beoordeling!M81,\"\")","v":0},{"$f":"IF(AND($A$12>0,K6<>\"\"),Beoordeling!N81,\"\")","v":0},{"$f":"IF(AND($A$12>0,L6<>\"\"),Beoordeling!O81,\"\")","v":0},{"$f":"IF(AND($A$12>0,M6<>\"\"),Beoordeling!P81,\"\")","v":0},{"$f":"IF(AND($A$12>0,N6<>\"\"),Beoordeling!Q81,\"\")","v":""},{"$f":"IF(AND($A$12>0,O6<>\"\"),Beoordeling!R81,\"\")","v":""},{"$f":"IF(AND($A$12>0,P6<>\"\"),Beoordeling!S81,\"\")","v":""},{"$f":"IF(AND($A$12>0,Q6<>\"\"),Beoordeling!T81,\"\")","v":""},{"$f":"IF(AND($A$12>0,R6<>\"\"),Beoordeling!U81,\"\")","v":""},{"$f":"IF(AND($A$12>0,S6<>\"\"),Beoordeling!V81,\"\")","v":""},{"$f":"IF(AND($A$12>0,T6<>\"\"),Beoordeling!W81,\"\")","v":""},{"$f":"IF(AND($A$12>0,U6<>\"\"),Beoordeling!X81,\"\")","v":""},{"$f":"IF(AND($A$12>0,V6<>\"\"),Beoordeling!Y81,\"\")","v":""},{"$f":"IF(AND($A$12>0,W6<>\"\"),Beoordeling!Z81,\"\")","v":""},{"$f":"IF(AND($A$12>0,X6<>\"\"),Beoordeling!AA81,\"\")","v":""},{"$f":"IF(AND($A$12>0,Y6<>\"\"),Beoordeling!AB81,\"\")","v":""},{"$f":"IF(AND($A$12>0,Z6<>\"\"),Beoordeling!AC81,\"\")","v":""},{"$f":"IF(AND($A$12>0,AA6<>\"\"),Beoordeling!AD81,\"\")","v":""},{"$f":"IF(AND($A$12>0,AB6<>\"\"),Beoordeling!AE81,\"\")","v":""},{"$f":"IF(AND($A$12>0,AC6<>\"\"),Beoordeling!AF81,\"\")","v":""},{"$f":"IF(AND($A$12>0,AD6<>\"\"),Beoordeling!AG81,\"\")","v":""},{"$f":"IF(AND($A$12>0,AE6<>\"\"),Beoordeling!AH81,\"\")","v":""},{"$f":"IF(AND($A$12>0,AF6<>\"\"),Beoordeling!AI81,\"\")","v":""},{"$f":"IF(AND($A$12>0,AG6<>\"\"),Beoordeling!AJ81,\"\")","v":""},{"$f":"IF(AND($A$12>0,AH6<>\"\"),Beoordeling!AK81,\"\")","v":""},null,0]
[{"$f":"Beoordeling!E119","v":1},"G",{"$f":"IF(AND($A$13>0,C6<>\"\"),Beoordeling!F119,\"\")","v":0},{"$f":"IF(AND($A$13>0,D6<>\"\"),Beoordeling!G119,\"\")","v":0},{"$f":"IF(AND($A$13>0,E6<>\"\"),Beoordeling!H119,\"\")","v":0},{"$f":"IF(AND($A$13>0,F6<>\"\"),Beoordeling!I119,\"\")","v":0},{"$f":"IF(AND($A$13>0,G6<>\"\"),Beoordeling!J119,\"\")","v":0},{"$f":"IF(AND($A$13>0,H6<>\"\"),Beoordeling!K119,\"\")","v":0},{"$f":"IF(AND($A$13>0,I6<>\"\"),Beoordeling!L119,\"\")","v":0},{"$f":"IF(AND($A$13>0,J6<>\"\"),Beoordeling!M119,\"\")","v":0},{"$f":"IF(AND($A$13>0,K6<>\"\"),Beoordeling!N119,\"\")","v":0},{"$f":"IF(AND($A$13>0,L6<>\"\"),Beoordeling!O119,\"\")","v":0},{"$f":"IF(AND($A$13>0,M6<>\"\"),Beoordeling!P119,\"\")","v":0},{"$f":"IF(AND($A$13>0,N6<>\"\"),Beoordeling!Q119,\"\")","v":""},{"$f":"IF(AND($A$13>0,O6<>\"\"),Beoordeling!R119,\"\")","v":""},{"$f":"IF(AND($A$13>0,P6<>\"\"),Beoordeling!S119,\"\")","v":""},{"$f":"IF(AND($A$13>0,Q6<>\"\"),Beoordeling!T119,\"\")","v":""},{"$f":"IF(AND($A$13>0,R6<>\"\"),Beoordeling!U119,\"\")","v":""},{"$f":"IF(AND($A$13>0,S6<>\"\"),Beoordeling!V119,\"\")","v":""},{"$f":"IF(AND($A$13>0,T6<>\"\"),Beoordeling!W119,\"\")","v":""},{"$f":"IF(AND($A$13>0,U6<>\"\"),Beoordeling!X119,\"\")","v":""},{"$f":"IF(AND($A$13>0,V6<>\"\"),Beoordeling!Y119,\"\")","v":""},{"$f":"IF(AND($A$13>0,W6<>\"\"),Beoordeling!Z119,\"\")","v":""},{"$f":"IF(AND($A$13>0,X6<>\"\"),Beoordeling!AA119,\"\")","v":""},{"$f":"IF(AND($A$13>0,Y6<>\"\"),Beoordeling!AB119,\"\")","v":""},{"$f":"IF(AND($A$13>0,Z6<>\"\"),Beoordeling!AC119,\"\")","v":""},{"$f":"IF(AND($A$13>0,AA6<>\"\"),Beoordeling!AD119,\"\")","v":""},{"$f":"IF(AND($A$13>0,AB6<>\"\"),Beoordeling!AE119,\"\")","v":""},{"$f":"IF(AND($A$13>0,AC6<>\"\"),Beoordeling!AF119,\"\")","v":""},{"$f":"IF(AND($A$13>0,AD6<>\"\"),Beoordeling!AG119,\"\")","v":""},{"$f":"IF(AND($A$13>0,AE6<>\"\"),Beoordeling!AH119,\"\")","v":""},{"$f":"IF(AND($A$13>0,AF6<>\"\"),Beoordeling!AI119,\"\")","v":""},{"$f":"IF(AND($A$13>0,AG6<>\"\"),Beoordeling!AJ119,\"\")","v":""},{"$f":"IF(AND($A$13>0,AH6<>\"\"),Beoordeling!AK119,\"\")","v":""},null,0]
[{"$f":"Beoordeling!E127","v":1},"H",{"$f":"IF(AND($A$14>0,C6<>\"\"),Beoordeling!F127,\"\")","v":0},{"$f":"IF(AND($A$14>0,D6<>\"\"),Beoordeling!G127,\"\")","v":0},{"$f":"IF(AND($A$14>0,E6<>\"\"),Beoordeling!H127,\"\")","v":0},{"$f":"IF(AND($A$14>0,F6<>\"\"),Beoordeling!I127,\"\")","v":0},{"$f":"IF(AND($A$14>0,G6<>\"\"),Beoordeling!J127,\"\")","v":0},{"$f":"IF(AND($A$14>0,H6<>\"\"),Beoordeling!K127,\"\")","v":0},{"$f":"IF(AND($A$14>0,I6<>\"\"),Beoordeling!L127,\"\")","v":0},{"$f":"IF(AND($A$14>0,J6<>\"\"),Beoordeling!M127,\"\")","v":0},{"$f":"IF(AND($A$14>0,K6<>\"\"),Beoordeling!N127,\"\")","v":0},{"$f":"IF(AND($A$14>0,L6<>\"\"),Beoordeling!O127,\"\")","v":0},{"$f":"IF(AND($A$14>0,M6<>\"\"),Beoordeling!P127,\"\")","v":0},{"$f":"IF(AND($A$14>0,N6<>\"\"),Beoordeling!Q127,\"\")","v":""},{"$f":"IF(AND($A$14>0,O6<>\"\"),Beoordeling!R127,\"\")","v":""},{"$f":"IF(AND($A$14>0,P6<>\"\"),Beoordeling!S127,\"\")","v":""},{"$f":"IF(AND($A$14>0,Q6<>\"\"),Beoordeling!T127,\"\")","v":""},{"$f":"IF(AND($A$14>0,R6<>\"\"),Beoordeling!U127,\"\")","v":""},{"$f":"IF(AND($A$14>0,S6<>\"\"),Beoordeling!V127,\"\")","v":""},{"$f":"IF(AND($A$14>0,T6<>\"\"),Beoordeling!W127,\"\")","v":""},{"$f":"IF(AND($A$14>0,U6<>\"\"),Beoordeling!X127,\"\")","v":""},{"$f":"IF(AND($A$14>0,V6<>\"\"),Beoordeling!Y127,\"\")","v":""},{"$f":"IF(AND($A$14>0,W6<>\"\"),Beoordeling!Z127,\"\")","v":""},{"$f":"IF(AND($A$14>0,X6<>\"\"),Beoordeling!AA127,\"\")","v":""},{"$f":"IF(AND($A$14>0,Y6<>\"\"),Beoordeling!AB127,\"\")","v":""},{"$f":"IF(AND($A$14>0,Z6<>\"\"),Beoordeling!AC127,\"\")","v":""},{"$f":"IF(AND($A$14>0,AA6<>\"\"),Beoordeling!AD127,\"\")","v":""},{"$f":"IF(AND($A$14>0,AB6<>\"\"),Beoordeling!AE127,\"\")","v":""},{"$f":"IF(AND($A$14>0,AC6<>\"\"),Beoordeling!AF127,\"\")","v":""},{"$f":"IF(AND($A$14>0,AD6<>\"\"),Beoordeling!AG127,\"\")","v":""},{"$f":"IF(AND($A$14>0,AE6<>\"\"),Beoordeling!AH127,\"\")","v":""},{"$f":"IF(AND($A$14>0,AF6<>\"\"),Beoordeling!AI127,\"\")","v":""},{"$f":"IF(AND($A$14>0,AG6<>\"\"),Beoordeling!AJ127,\"\")","v":""},{"$f":"IF(AND($A$14>0,AH6<>\"\"),Beoordeling!AK127,\"\")","v":""},null,0]
[{"$f":"Beoordeling!E135","v":1},"I",{"$f":"IF(AND($A$15>0,C6<>\"\"),Beoordeling!F135,\"\")","v":0},{"$f":"IF(AND($A$15>0,D6<>\"\"),Beoordeling!G135,\"\")","v":0},{"$f":"IF(AND($A$15>0,E6<>\"\"),Beoordeling!H135,\"\")","v":0},{"$f":"IF(AND($A$15>0,F6<>\"\"),Beoordeling!I135,\"\")","v":0},{"$f":"IF(AND($A$15>0,G6<>\"\"),Beoordeling!J135,\"\")","v":0},{"$f":"IF(AND($A$15>0,H6<>\"\"),Beoordeling!K135,\"\")","v":0},{"$f":"IF(AND($A$15>0,I6<>\"\"),Beoordeling!L135,\"\")","v":0},{"$f":"IF(AND($A$15>0,J6<>\"\"),Beoordeling!M135,\"\")","v":0},{"$f":"IF(AND($A$15>0,K6<>\"\"),Beoordeling!N135,\"\")","v":0},{"$f":"IF(AND($A$15>0,L6<>\"\"),Beoordeling!O135,\"\")","v":0},{"$f":"IF(AND($A$15>0,M6<>\"\"),Beoordeling!P135,\"\")","v":0},{"$f":"IF(AND($A$15>0,N6<>\"\"),Beoordeling!Q135,\"\")","v":""},{"$f":"IF(AND($A$15>0,O6<>\"\"),Beoordeling!R135,\"\")","v":""},{"$f":"IF(AND($A$15>0,P6<>\"\"),Beoordeling!S135,\"\")","v":""},{"$f":"IF(AND($A$15>0,Q6<>\"\"),Beoordeling!T135,\"\")","v":""},{"$f":"IF(AND($A$15>0,R6<>\"\"),Beoordeling!U135,\"\")","v":""},{"$f":"IF(AND($A$15>0,S6<>\"\"),Beoordeling!V135,\"\")","v":""},{"$f":"IF(AND($A$15>0,T6<>\"\"),Beoordeling!W135,\"\")","v":""},{"$f":"IF(AND($A$15>0,U6<>\"\"),Beoordeling!X135,\"\")","v":""},{"$f":"IF(AND($A$15>0,V6<>\"\"),Beoordeling!Y135,\"\")","v":""},{"$f":"IF(AND($A$15>0,W6<>\"\"),Beoordeling!Z135,\"\")","v":""},{"$f":"IF(AND($A$15>0,X6<>\"\"),Beoordeling!AA135,\"\")","v":""},{"$f":"IF(AND($A$15>0,Y6<>\"\"),Beoordeling!AB135,\"\")","v":""},{"$f":"IF(AND($A$15>0,Z6<>\"\"),Beoordeling!AC135,\"\")","v":""},{"$f":"IF(AND($A$15>0,AA6<>\"\"),Beoordeling!AD135,\"\")","v":""},{"$f":"IF(AND($A$15>0,AB6<>\"\"),Beoordeling!AE135,\"\")","v":""},{"$f":"IF(AND($A$15>0,AC6<>\"\"),Beoordeling!AF135,\"\")","v":""},{"$f":"IF(AND($A$15>0,AD6<>\"\"),Beoordeling!AG135,\"\")","v":""},{"$f":"IF(AND($A$15>0,AE6<>\"\"),Beoordeling!AH135,\"\")","v":""},{"$f":"IF(AND($A$15>0,AF6<>\"\"),Beoordeling!AI135,\"\")","v":""},{"$f":"IF(AND($A$15>0,AG6<>\"\"),Beoordeling!AJ135,\"\")","v":""},{"$f":"IF(AND($A$15>0,AH6<>\"\"),Beoordeling!AK135,\"\")","v":""},null,0]
[null,"eind(%)",{"$f":"IF(C6<>\"\",(SUMPRODUCT($A$7:$A$15,C7:C15))/SUM($A$7:$A$15),\"\")","v":0},0,0,0,0,0,0,0,0,0,0,"","","","","","","","","","","","","","","","","","","","",{"$f":"IF(AH6<>\"\",(SUMPRODUCT($A$7:$A$15,AH7:AH15))/SUM($A$7:$A$15),\"\")","v":""},null,{"$f":"AVERAGE(C16:AH16)","v":0}]
[null,"cijfer",{"$f":"IF(C6<>\"\",(SUMPRODUCT($A$7:$A$15,C7:C15)*0.9)/SUM($A$7:$A$15)+10,\"\")","v":10},10,10,10,10,10,10,10,10,10,10,"","","","","","","","","","","","","","","","","","","","",{"$f":"IF(AH6<>\"\",(SUMPRODUCT($A$7:$A$15,AH7:AH15)*0.9)/SUM($A$7:$A$15)+10,\"\")","v":""},null,{"$f":"AVERAGE(C17:AH17)","v":10}]